[Event "Titled Tuesday Blitz February 22 Early 2022"]
[White "Winkels, Marcel"]
[Black "Shevtchenko, Olesya"]
[WhiteFideId "1003887"]
[BlackFideId "24131890"]
[WhiteElo "1900"]
[BlackElo "2003"]
[Result "1/2-1/2"]
[Round "11"]
[TimeControl "180+1"]
[Date "2022.02.22"]
[WhiteClock "0:01:09"]
[BlackClock "0:01:22"]

1. e4 {[%clk 0:03:00]}  c5 {[%clk 0:02:53]} 2. Nc3 {[%clk 0:02:59]}  Nc6 {[%clk 0:02:52]} 3. f4 {[%clk 0:03:00]}  e6 {[%clk 0:02:51]} 4. Nf3 {[%clk 0:03:00]}  d5 {[%clk 0:02:51]} 5. d3 {[%clk 0:02:59]}  Nf6 {[%clk 0:02:49]} 6. e5 {[%clk 0:02:54]}  Nd7 {[%clk 0:02:48]} 7. Be2 {[%clk 0:02:49]}  f6 {[%clk 0:02:47]} 8. exf6 {[%clk 0:02:44]}  Qxf6 {[%clk 0:02:47]} 9. O-O {[%clk 0:02:44]}  Bd6 {[%clk 0:02:47]} 10. g3 {[%clk 0:02:42]}  O-O {[%clk 0:02:47]} 11. Ng5 {[%clk 0:02:36]}  h6 {[%clk 0:02:43]} 12. Nf3 {[%clk 0:02:34]}  b6 {[%clk 0:02:32]} 13. Bd2 {[%clk 0:02:32]}  Bb7 {[%clk 0:02:32]} 14. Qe1 {[%clk 0:02:29]}  Rae8 {[%clk 0:02:32]} 15. Qf2 {[%clk 0:02:28]}  Nb4 {[%clk 0:02:27]} 16. Rac1 {[%clk 0:02:25]}  e5 {[%clk 0:02:27]} 17. fxe5 {[%clk 0:02:23]}  Nxe5 {[%clk 0:02:27]} 18. a3 {[%clk 0:02:09]}  Na6 {[%clk 0:02:24]} 19. Qg2 {[%clk 0:02:04]}  Nc7 {[%clk 0:02:07]} 20. Nxe5 {[%clk 0:02:01]}  Qxe5 {[%clk 0:02:06]} 21. Rxf8+ {[%clk 0:01:59]}  Rxf8 {[%clk 0:02:07]} 22. Bf3 {[%clk 0:01:59]}  Qf5 {[%clk 0:01:48]} 23. Rf1 {[%clk 0:01:57]}  Be5 {[%clk 0:01:40]} 24. Bxd5+ {[%clk 0:01:50]}  Bxd5 {[%clk 0:01:40]} 25. Rxf5 {[%clk 0:01:50]}  Rxf5 {[%clk 0:01:41]} 26. Nxd5 {[%clk 0:01:48]}  Bd4+ {[%clk 0:01:41]} 27. Kh1 {[%clk 0:01:46]}  Nxd5 {[%clk 0:01:41]} 28. h3 {[%clk 0:01:31]}  Nf6 {[%clk 0:01:35]} 29. Bf4 {[%clk 0:01:30]}  g5 {[%clk 0:01:35]} 30. Bd6 {[%clk 0:01:25]}  Bxb2 {[%clk 0:01:29]} 31. a4 {[%clk 0:01:22]}  Bd4 {[%clk 0:01:26]} 32. Qa8+ {[%clk 0:01:20]}  Kf7 {[%clk 0:01:26]} 33. Qxa7+ {[%clk 0:01:20]}  Ke6 {[%clk 0:01:26]} 34. Qe7+ {[%clk 0:01:18]}  Kd5 {[%clk 0:01:24]} 35. Bb8 {[%clk 0:01:16]}  Rf1+ {[%clk 0:01:21]} 36. Kg2 {[%clk 0:01:13]}  Rf2+ {[%clk 0:01:22]} 37. Kh1 {[%clk 0:01:13]}  Rf1+ {[%clk 0:01:21]} 38. Kg2 {[%clk 0:01:13]}  Rf2+ {[%clk 0:01:22]} 39. Kh1 {[%clk 0:01:09]}  Rf1+ {[%clk 0:01:22]} 1/2-1/2


[Site "https://www.chess.com"]

[Event "Titled Tuesday Blitz February 22 Early 2022"]
[White "Xu, Yuanyuan"]
[Black "Samaganova, Aleksandra"]
[WhiteFideId "8601089"]
[BlackFideId "13800221"]
[WhiteElo "2281"]
[BlackElo "1859"]
[Result "1-0"]
[Round "11"]
[TimeControl "180+1"]
[Date "2022.02.22"]
[WhiteClock "0:00:39"]
[BlackClock "0:00:01"]

1. e4 {[%clk 0:03:00]}  c5 {[%clk 0:02:58]} 2. Nf3 {[%clk 0:03:00]}  e6 {[%clk 0:02:57]} 3. Nc3 {[%clk 0:02:59]}  a6 {[%clk 0:02:57]} 4. g3 {[%clk 0:02:58]}  b5 {[%clk 0:02:56]} 5. Bg2 {[%clk 0:02:58]}  Bb7 {[%clk 0:02:55]} 6. d4 {[%clk 0:02:56]}  cxd4 {[%clk 0:02:54]} 7. Nxd4 {[%clk 0:02:57]}  Qc7 {[%clk 0:02:55]} 8. O-O {[%clk 0:02:55]}  Nc6 {[%clk 0:02:51]} 9. Re1 {[%clk 0:02:47]}  Bc5 {[%clk 0:02:46]} 10. Nd5 {[%clk 0:02:40]}  Qd8 {[%clk 0:02:37]} 11. Nf5 {[%clk 0:02:26]}  exf5 {[%clk 0:02:21]} 12. exf5+ {[%clk 0:02:25]}  Kf8 {[%clk 0:02:19]} 13. f6 {[%clk 0:02:11]}  Nxf6 {[%clk 0:01:53]} 14. Bg5 {[%clk 0:02:11]}  h6 {[%clk 0:01:32]} 15. Bxf6 {[%clk 0:02:00]}  gxf6 {[%clk 0:01:32]} 16. Qh5 {[%clk 0:01:47]}  Ne5 {[%clk 0:00:56]} 17. Rxe5 {[%clk 0:01:24]}  fxe5 {[%clk 0:00:46]} 18. Qxe5 {[%clk 0:01:24]}  Rg8 {[%clk 0:00:30]} 19. Nf6 {[%clk 0:01:20]}  Rg5 {[%clk 0:00:13]} 20. Nh7+ {[%clk 0:01:19]}  Kg8 {[%clk 0:00:10]} 21. Nxg5 {[%clk 0:01:11]}  Bxg2 {[%clk 0:00:06]} 22. Nxf7 {[%clk 0:00:53]}  Kxf7 {[%clk 0:00:05]} 23. Kxg2 {[%clk 0:00:54]}  d6 {[%clk 0:00:04]} 24. Qd5+ {[%clk 0:00:52]}  Kg7 {[%clk 0:00:04]} 25. Re1 {[%clk 0:00:50]}  Ra7 {[%clk 0:00:04]} 26. Re4 {[%clk 0:00:50]}  Kh7 {[%clk 0:00:03]} 27. Qf5+ {[%clk 0:00:49]}  Kh8 {[%clk 0:00:03]} 28. Rh4 {[%clk 0:00:47]}  Rh7 {[%clk 0:00:03]} 29. Qg6 {[%clk 0:00:43]}  Qg8 {[%clk 0:00:02]} 30. Qe4 {[%clk 0:00:41]}  Qg7 {[%clk 0:00:01]} 31. Rg4 {[%clk 0:00:39]}  Qf7 {[%clk 0:00:01]} 32. Qa8+ {[%clk 0:00:39]} 1-0


[Site "https://www.chess.com"]

[Event "Titled Tuesday Blitz February 22 Early 2022"]
[White "wisdomboy"]
[Black "Putri, Regita Desyari"]
[BlackFideId "7109083"]
[WhiteElo "2438"]
[BlackElo "1930"]
[Result "0-1"]
[Round "11"]
[TimeControl "180+1"]
[Date "2022.02.22"]
[WhiteClock "0:00:02"]
[BlackClock "0:00:02"]

1. d4 {[%clk 0:03:00]}  Nf6 {[%clk 0:02:59]} 2. c4 {[%clk 0:03:00]}  e6 {[%clk 0:02:59]} 3. Nf3 {[%clk 0:02:59]}  b6 {[%clk 0:02:59]} 4. g3 {[%clk 0:02:59]}  Ba6 {[%clk 0:02:59]} 5. Qc2 {[%clk 0:02:59]}  Bb4+ {[%clk 0:02:58]} 6. Nbd2 {[%clk 0:02:59]}  O-O {[%clk 0:02:58]} 7. Bg2 {[%clk 0:02:59]}  d5 {[%clk 0:02:58]} 8. O-O {[%clk 0:02:58]}  c6 {[%clk 0:02:57]} 9. b3 {[%clk 0:02:56]}  Bd6 {[%clk 0:02:53]} 10. Bb2 {[%clk 0:02:56]}  Bb7 {[%clk 0:02:50]} 11. e4 {[%clk 0:02:54]}  dxe4 {[%clk 0:02:50]} 12. Nxe4 {[%clk 0:02:55]}  Nxe4 {[%clk 0:02:50]} 13. Qxe4 {[%clk 0:02:56]}  Qe7 {[%clk 0:02:51]} 14. Ne5 {[%clk 0:02:51]}  f6 {[%clk 0:02:36]} 15. Nd3 {[%clk 0:02:47]}  Na6 {[%clk 0:02:30]} 16. Rfe1 {[%clk 0:02:37]}  Rfe8 {[%clk 0:02:30]} 17. Nf4 {[%clk 0:02:30]}  Bxf4 {[%clk 0:02:29]} 18. Qxf4 {[%clk 0:02:30]}  c5 {[%clk 0:02:26]} 19. d5 {[%clk 0:02:30]}  e5 {[%clk 0:02:26]} 20. Qe4 {[%clk 0:02:26]}  Qd7 {[%clk 0:02:18]} 21. Rad1 {[%clk 0:02:17]}  Rad8 {[%clk 0:02:02]} 22. Qh4 {[%clk 0:02:15]}  Qd6 {[%clk 0:01:57]} 23. Bh3 {[%clk 0:02:09]}  Bc8 {[%clk 0:01:57]} 24. Bxc8 {[%clk 0:01:51]}  Rxc8 {[%clk 0:01:58]} 25. Qg4 {[%clk 0:01:49]}  Nb4 {[%clk 0:01:50]} 26. Re2 {[%clk 0:01:40]}  Rc7 {[%clk 0:01:32]} 27. a3 {[%clk 0:01:38]}  Na6 {[%clk 0:01:30]} 28. f4 {[%clk 0:01:35]}  Rce7 {[%clk 0:01:28]} 29. fxe5 {[%clk 0:01:33]}  fxe5 {[%clk 0:01:29]} 30. Rde1 {[%clk 0:01:31]}  Nb8 {[%clk 0:01:21]} 31. Bc3 {[%clk 0:01:11]}  Nd7 {[%clk 0:01:21]} 32. Qg5 {[%clk 0:01:04]}  Qf6 {[%clk 0:01:08]} 33. Qe3 {[%clk 0:00:57]}  Qd6 {[%clk 0:01:02]} 34. Rf2 {[%clk 0:00:54]}  Nf6 {[%clk 0:00:58]} 35. Rf5 {[%clk 0:00:48]}  Nd7 {[%clk 0:00:50]} 36. Ref1 {[%clk 0:00:45]}  h6 {[%clk 0:00:49]} 37. Qf2 {[%clk 0:00:27]}  Qg6 {[%clk 0:00:44]} 38. Qe2 {[%clk 0:00:20]}  Qd6 {[%clk 0:00:39]} 39. Re1 {[%clk 0:00:19]}  a5 {[%clk 0:00:33]} 40. a4 {[%clk 0:00:19]}  Qg6 {[%clk 0:00:26]} 41. Rf3 {[%clk 0:00:18]}  e4 {[%clk 0:00:17]} 42. Rf4 {[%clk 0:00:17]}  e3 {[%clk 0:00:15]} 43. Qf3 {[%clk 0:00:16]}  Qd3 {[%clk 0:00:13]} 44. Rc1 {[%clk 0:00:14]}  Ne5 {[%clk 0:00:07]} 45. Bxe5 {[%clk 0:00:13]}  Rxe5 {[%clk 0:00:08]} 46. Rf1 {[%clk 0:00:12]}  Qd2 {[%clk 0:00:06]} 47. Rf8+ {[%clk 0:00:11]}  Rxf8 {[%clk 0:00:05]} 48. Qxf8+ {[%clk 0:00:12]}  Kh7 {[%clk 0:00:06]} 49. Rf7 {[%clk 0:00:08]}  Rg5 {[%clk 0:00:04]} 50. Qe7 {[%clk 0:00:04]}  e2 {[%clk 0:00:03]} 51. Qe4+ {[%clk 0:00:04]}  Rg6 {[%clk 0:00:03]} 52. Re7 {[%clk 0:00:03]}  Qd1+ {[%clk 0:00:02]} 53. Kf2 {[%clk 0:00:02]}  Qf1+ {[%clk 0:00:02]} 54. Ke3 {[%clk 0:00:02]}  e1=Q# {[%clk 0:00:02]} 0-1